bitfinex/quotes_BTCUSD_20250118
["timestamp","ask_amount","ask_price","bid_price","bid_amount"]
[1737180230867,0.02286992,102980.0,102970.0,0.39146219]
[1737180231085,0.39123191,102990.0,102980.0,0.097106]
[1737180232006,0.29413591,102990.0,102980.0,0.097106]
[1737180232243,0.39123191,102990.0,102980.0,0.097106]
[1737180232959,0.29413591,102990.0,102980.0,0.097106]
[1737180233512,0.0987,102990.0,102980.0,0.097106]
[1737180233715,0.12156992,102990.0,102980.0,0.097106]
[1737180233918,0.0987,102990.0,102980.0,0.097106]
[1737180234118,0.12156992,102990.0,102980.0,0.097106]
[1737180234724,0.09856992,102990.0,102980.0,0.19634681]
[1737180234939,0.0757,102990.0,102980.0,0.19634681]
[1737180235338,0.09856992,102990.0,102980.0,0.19634681]
[1737180235533,0.0757,102990.0,102980.0,0.2060124]
[1737180235734,0.09856992,102990.0,102980.0,0.2060124]
[1737180236151,0.0757,102990.0,102980.0,0.2060124]
[1737180236527,0.27113591,102990.0,102980.0,0.2060124]
[1737180237913,0.0757,102990.0,102980.0,0.2060124]
[1737180239329,0.39123191,102990.0,102980.0,0.00966559]
[1737180239993,0.39165971,102990.0,102980.0,0.00966559]
[1737180240573,0.120106,102980.0,102970.0,0.00089838]
[1737180240742,0.31554191,102980.0,102970.0,0.00089838]
[1737180241255,0.21843591,102980.0,102970.0,0.09801338]
[1737180241413,0.31554191,102980.0,102970.0,0.09801338]
[1737180241849,0.21843591,102980.0,102970.0,0.09801338]
[1737180242079,0.04586992,102980.0,102970.0,0.09801338]
[1737180242466,0.31554191,102980.0,102970.0,0.00089838]
[1737180243012,0.21843591,102980.0,102970.0,0.09801338]
[1737180243214,0.04586992,102980.0,102970.0,0.09801338]
[1737180243481,0.02286992,102980.0,102970.0,0.09898445]
[1737180243720,0.09899772,102990.0,102980.0,0.097106]
[1737180243847,0.02329772,102990.0,102980.0,0.19634681]
[1737180244065,0.02329772,102990.0,102980.0,0.19731775]
[1737180244267,0.0004278,102990.0,102980.0,0.3560124]
[1737180244713,0.0004278,102990.0,102980.0,0.34634681]
[1737180245163,0.19586371,102990.0,102980.0,0.34634681]
[1737180245373,0.21873363,102990.0,102980.0,0.34634681]
[1737180245579,0.02329772,102990.0,102980.0,0.34634681]
[1737180246501,0.24173363,102990.0,102980.0,0.34634681]
[1737180246725,0.02286992,102980.0,102970.0,0.29222138]
[1737180246882,0.21830583,102980.0,102970.0,0.29222138]
[1737180247094,0.02286992,102980.0,102970.0,0.29222138]
[1737180247730,0.02286992,102980.0,102970.0,0.39146219]
[1737180247876,0.16679772,102990.0,102980.0,0.097106]
[1737180248078,0.02329772,102990.0,102980.0,0.19731776]
[1737180248482,0.02329772,102990.0,102980.0,0.19731775]
[1737180248708,0.0004278,102990.0,102980.0,0.19731772]
[1737180248912,0.0004278,102990.0,102980.0,0.19634681]
[1737180249262,0.02329772,102990.0,102980.0,0.19634681]
[1737180249658,0.0004278,102990.0,102980.0,0.19634681]
[1737180249789,0.0004278,102990.0,102980.0,0.19731773]
[1737180250203,0.0004278,102990.0,102980.0,0.34731773]
[1737180250423,0.0004278,102990.0,102980.0,0.3560124]
[1737180250623,0.0004278,102990.0,102980.0,0.38624287]
[1737180250832,0.0004278,102990.0,102980.0,0.48624287]
[1737180250984,0.0004278,102990.0,102980.0,0.82051878]
[1737180251191,0.0004278,102990.0,102980.0,0.89764886]
[1737180251854,0.0004278,102990.0,102980.0,1.11379101]
[1737180252667,0.0004278,103000.0,102990.0,0.42422608]
[1737180252882,0.0004278,103000.0,102990.0,0.55369736]
[1737180253312,0.0004278,103000.0,102990.0,0.47656728]
[1737180253706,0.0004278,103000.0,102990.0,0.55369736]
[1737180254791,0.0004278,103000.0,102990.0,1.07304158]
[1737180255900,0.0004278,103000.0,102990.0,1.15990023]
[1737180256584,0.0004278,103000.0,102990.0,0.94375807]
[1737180257327,0.0004278,103000.0,102990.0,0.86662799]
[1737180257581,0.0004278,103000.0,102990.0,0.94375807]
[1737180257785,0.0004278,103000.0,102990.0,0.77084434]
[1737180258063,0.0004278,103000.0,102990.0,0.59371426]
[1737180258205,0.0004278,103000.0,102990.0,0.56348379]
[1737180258593,0.0004278,103000.0,102990.0,0.66348379]
[1737180258839,0.0004278,103000.0,102990.0,0.69362207]
[1737180259307,0.0004278,103000.0,102990.0,0.47647509]
[1737180259510,0.0004278,103000.0,102990.0,0.55360517]
[1737180260130,0.0004278,103000.0,102990.0,0.77075215]
[1737180261165,0.0004278,103000.0,102990.0,1.04833997]
[1737180261518,0.0004278,103000.0,102990.0,0.98322983]
[1737180261721,0.0004278,103000.0,102990.0,1.15614356]
[1737180262956,0.0004278,103000.0,102990.0,1.20654173]
[1737180263166,0.0004278,103000.0,102990.0,1.42268389]
[1737180263814,8e-07,103000.0,102990.0,1.42268389]
[1737180263970,8e-07,103000.0,102990.0,1.29250621]
[1737180264352,8e-07,103000.0,102990.0,1.16070621]
[1737180265212,8e-07,103000.0,102990.0,0.83357613]
[1737180265411,8e-07,103000.0,102990.0,0.95343785]
[1737180266003,8e-07,103000.0,102990.0,0.34723498]
[1737180267565,8e-07,103000.0,102990.0,0.44723498]
[1737180268839,8e-07,103000.0,102990.0,0.52436506]
[1737180269043,8e-07,103000.0,102990.0,0.68466132]
[1737180269474,0.00120147,103010.0,103000.0,0.347087]
[1737180269643,0.00120147,103010.0,103000.0,0.61628769]
[1737180270837,0.00120147,103010.0,103000.0,0.69341777]
[1737180272325,0.00120147,103010.0,103000.0,0.78027642]
[1737180273455,0.00120147,103010.0,103000.0,0.91056475]
[1737180274203,0.02420147,103010.0,103000.0,0.70023871]
[1737180274402,0.02420147,103010.0,103000.0,0.70759871]
[1737180274627,0.15437915,103010.0,103000.0,0.29375022]
[1737180274834,0.15161294,103010.0,103000.0,0.29375022]
[1737180275254,0.15161294,103010.0,103000.0,0.44375022]
[1737180275470,0.15161294,103010.0,103000.0,0.45375106]
[1737180276010,0.15161294,103010.0,103000.0,0.36689241]
[1737180276188,0.15161294,103010.0,103000.0,0.59707009]
[1737180276189,0.00111294,103010.0,103000.0,0.59707009]
[1737180276356,0.00111294,103010.0,103000.0,0.46689241]
[1737180276596,0.00111294,103010.0,103000.0,0.49702049]
[1737180277159,0.00111294,103010.0,103000.0,0.62719817]
[1737180277362,0.00111294,103010.0,103000.0,0.70432825]
[1737180278466,9.4e-07,103010.0,103000.0,0.70432825]
[1737180279253,9.4e-07,103010.0,103000.0,0.57415057]
[1737180279462,9.4e-07,103010.0,103000.0,0.49702049]
[1737180279632,9.4e-07,103010.0,103000.0,0.68081034]
[1737180280529,9.4e-07,103010.0,103000.0,0.59395169]
[1737180282692,9.4e-07,103010.0,103000.0,0.42418161]
[1737180283628,0.10270094,103010.0,103000.0,0.39702049]
[1737180284973,0.30354854,103010.0,103000.0,0.14777968]
[1737180285118,0.30354854,103010.0,103000.0,0.2676516]
[1737180285859,0.30354854,103010.0,103000.0,0.1176516]
[1737180286119,0.30354854,103010.0,103000.0,0.10765076]
[1737180286340,0.30397624,103010.0,103000.0,0.10765076]
[1737180286737,0.37818332,103010.0,103000.0,0.10765076]
[1737180287041,0.37818332,103010.0,103000.0,0.00089817]
[1737180289060,0.37818332,103010.0,103000.0,0.09798517]
[1737180289473,0.37818332,103010.0,103000.0,0.00089817]
[1737180290255,0.37818332,103010.0,103000.0,0.09798517]
[1737180290635,0.37818332,103010.0,103000.0,0.00089817]
[1737180291017,0.28110632,103010.0,103000.0,0.09798517]
[1737180291225,0.37818332,103010.0,103000.0,0.09798517]
[1737180291431,0.28110632,103010.0,103000.0,0.09798517]
[1737180291628,0.37818332,103010.0,103000.0,0.09798517]
[1737180292027,0.28110632,103010.0,103000.0,0.09798517]
[1737180292437,0.37818332,103010.0,103000.0,0.09798517]
[1737180292630,0.12792864,103010.0,103000.0,0.09798517]
[1737180292861,0.25810632,103010.0,103000.0,0.09798517]
[1737180293172,0.28110632,103010.0,103000.0,0.09798517]
[1737180293350,0.37818332,103010.0,103000.0,0.09798517]
[1737180293940,0.28110632,103010.0,103000.0,0.09798517]
[1737180299691,0.17379856,103010.0,103000.0,0.09798517]
[1737180299891,0.15079856,103010.0,103000.0,0.34819679]
[1737180300124,0.25810632,103010.0,103000.0,0.19722598]
[1737180300329,0.28110632,103010.0,103000.0,0.19722598]
[1737180300458,0.28110632,103010.0,103000.0,0.09798517]
[1737180301343,0.12792864,103010.0,103000.0,0.19722598]
[1737180301658,0.28110632,103010.0,103000.0,0.19722598]
[1737180301886,0.28110632,103010.0,103000.0,0.09798517]
[1737180302418,0.30397624,103010.0,103000.0,0.09798517]
[1737180302616,0.28110632,103010.0,103000.0,0.09798517]
[1737180302821,0.30397624,103010.0,103000.0,0.09798517]
[1737180303056,0.28110632,103010.0,103000.0,0.09798517]
[1737180303964,0.17379856,103010.0,103000.0,0.34722598]
[1737180304172,0.00042864,103010.0,103000.0,0.34722598]
[1737180305196,0.00042864,103010.0,103000.0,0.37736378]
[1737180305398,0.00042864,103010.0,103000.0,0.60754146]
[1737180305604,0.00042864,103010.0,103000.0,0.68467154]
[1737180305760,0.00042864,103010.0,103000.0,0.76147154]
[1737180305949,6.4e-07,103010.0,103000.0,0.76147154]
[1737180306153,6.4e-07,103010.0,103000.0,0.63129386]
[1737180306361,6.4e-07,103010.0,103000.0,0.55416378]
[1737180306563,6.4e-07,103010.0,103000.0,0.63129386]
[1737180306771,6.4e-07,103010.0,103000.0,0.63837386]
[1737180306974,6.4e-07,103010.0,103000.0,0.53837386]
[1737180307188,6.4e-07,103010.0,103000.0,0.56124378]
[1737180307526,6.4e-07,103010.0,103000.0,0.77839076]
[1737180307933,6.4e-07,103010.0,103000.0,0.60159076]
[1737180308166,6.4e-07,103010.0,103000.0,0.47130243]
[1737180308373,6.4e-07,103010.0,103000.0,0.54843251]
[1737180308901,6.4e-07,103010.0,103000.0,0.47130243]
[1737180309106,0.00086196,103020.0,103010.0,0.15]
[1737180309311,0.02376704,103040.0,103030.0,0.247059]
[1737180309489,0.02376704,103040.0,103030.0,0.3559654]
[1737180309699,0.00089712,103040.0,103030.0,0.3559654]
[1737180311350,0.02389712,103040.0,103030.0,0.3559654]
[1737180311846,0.02440407,103040.0,103030.0,0.3559654]
[1737180313254,0.04727399,103040.0,103030.0,0.3559654]
[1737180313457,0.22315167,103040.0,103030.0,0.25672459]
[1737180313659,0.09297399,103040.0,103030.0,0.3559654]
[1737180313859,0.00140407,103040.0,103030.0,0.3559654]
[1737180316231,0.02440407,103040.0,103030.0,0.3559654]
[1737180316993,0.04727399,103040.0,103030.0,0.3559654]
[1737180317400,0.02440407,103040.0,103030.0,0.36557512]
[1737180318425,0.00140407,103040.0,103030.0,0.36557512]
[1737180318627,0.00140407,103040.0,103030.0,0.4957528]
[1737180318871,0.00140407,103040.0,103030.0,0.36557512]
[1737180321755,0.00140407,103040.0,103030.0,0.36647308]
[1737180322180,0.00140407,103040.0,103030.0,0.49665076]
[1737180322392,0.00140407,103040.0,103030.0,0.59665076]
[1737180322598,0.00140407,103040.0,103030.0,0.46647308]
[1737180322790,0.00140407,103040.0,103030.0,0.46612972]
[1737180323937,0.00140407,103040.0,103030.0,0.5963074]
[1737180325620,0.00140407,103040.0,103030.0,0.67343748]
[1737180325857,0.00140407,103040.0,103030.0,1.2769385]
[1737180326264,0.00140407,103040.0,103030.0,1.1080895]
[1737180326502,0.00140407,103040.0,103030.0,1.00453095]
[1737180326705,0.00140407,103040.0,103030.0,0.92740087]
[1737180326909,0.00140407,103040.0,103030.0,0.85508887]
[1737180327111,0.01647712,103060.0,103040.0,0.1]
[1737180327323,0.03949906,103060.0,103050.0,0.30336081]
[1737180327545,0.03949906,103060.0,103050.0,0.3130264]
[1737180327752,0.01662914,103060.0,103050.0,0.59320408]
[1737180328251,0.01662914,103060.0,103050.0,0.67033416]
[1737180328389,0.03962914,103060.0,103050.0,0.67033416]
[1737180328849,0.03962914,103060.0,103050.0,0.4630264]
[1737180329805,0.03962914,103060.0,103050.0,0.54015648]
[1737180330184,0.03962914,103060.0,103050.0,0.4630264]
[1737180331464,0.03954063,103060.0,103050.0,0.59320408]
[1737180333210,0.03954063,103060.0,103050.0,0.4559464]
[1737180333418,0.03954063,103060.0,103050.0,0.3629464]
[1737180333829,0.03954063,103060.0,103050.0,0.37554063]
[1737180334031,0.03954063,103060.0,103050.0,0.3559464]
[1737180334229,0.03954063,103060.0,103050.0,0.2059464]
[1737180334436,0.06241055,103060.0,103050.0,0.3559464]
[1737180334664,0.06241055,103060.0,103050.0,0.2059464]
[1737180335062,0.11031055,103060.0,103050.0,0.2059464]
[1737180335286,0.29901831,103060.0,103050.0,0.2059464]
[1737180335452,0.29901831,103060.0,103050.0,0.19628081]
[1737180336035,0.29901831,103060.0,103050.0,0.20605065]
[1737180336414,0.29901831,103060.0,103050.0,0.09704]
[1737180337178,0.1044,103050.0,103040.0,0.441126]
[1737180337379,0.23457768,103050.0,103040.0,0.54036681]
[1737180337941,0.1044,103050.0,103040.0,0.54036681]
[1737180339844,0.0814,103050.0,103040.0,0.54036681]
[1737180340076,0.1044,103050.0,103040.0,0.54036681]
[1737180340427,0.23457768,103050.0,103040.0,0.291126]
[1737180340800,0.23457768,103050.0,103040.0,0.441126]
[1737180341264,0.1044,103050.0,103040.0,0.441126]
[1737180342086,0.1044,103050.0,103040.0,0.54036681]
[1737180342512,0.10880463,103050.0,103040.0,0.54036681]
[1737180342828,0.23898231,103050.0,103040.0,0.291126]
[1737180343572,0.24005432,103050.0,103040.0,0.291126]
[1737180344136,0.24005432,103050.0,103040.0,0.29202354]
[1737180345091,0.513672,103050.0,103040.0,0.00089754]
[1737180345659,0.38349432,103050.0,103040.0,0.09794654]
[1737180345864,0.38349432,103050.0,103040.0,0.00089754]
[1737180346099,0.28645432,103050.0,103040.0,0.09794654]
[1737180347695,0.15627664,103050.0,103040.0,0.09794654]
[1737180347922,0.15614656,103050.0,103040.0,0.34815782]
[1737180348122,0.13327664,103050.0,103040.0,0.34718735]
[1737180348331,0.13327664,103050.0,103040.0,0.05620902]
[1737180348539,0.28645432,103050.0,103040.0,0.15325802]
[1737180349383,0.28645432,103050.0,103040.0,0.097049]
[1737180349583,0.15627664,103050.0,103040.0,0.097049]
[1737180349968,0.15627664,103050.0,103040.0,0.19628981]
[1737180351475,0.28645432,103050.0,103040.0,0.19628981]
[1737180351700,0.28645432,103050.0,103040.0,0.20609399]
[1737180351863,0.15627664,103050.0,103040.0,0.20609399]
[1737180352266,0.15627664,103050.0,103040.0,0.20706439]
[1737180352438,0.15627664,103050.0,103040.0,0.20609399]
[1737180352810,0.15765657,103050.0,103040.0,0.20609399]
[1737180353005,0.28783425,103050.0,103040.0,0.20609399]
[1737180353209,0.15765657,103050.0,103040.0,0.20609399]
[1737180356583,0.15765657,103050.0,103040.0,0.20699237]
[1737180356781,0.15719306,103050.0,103040.0,0.20699237]
[1737180356982,0.02939306,103050.0,103040.0,0.20796274]
[1737180357135,0.02939306,103050.0,103040.0,0.20699237]
[1737180357537,0.05226298,103050.0,103040.0,0.20699237]
[1737180357948,0.02926298,103050.0,103040.0,0.20699237]
[1737180360583,0.02926298,103050.0,103040.0,0.09794738]
[1737180360584,0.15957074,103050.0,103040.0,0.09794738]
[1737180360822,0.28397074,103050.0,103040.0,0.09794738]
[1737180361387,0.15379306,103050.0,103040.0,0.09794738]
[1737180361722,0.15366298,103050.0,103040.0,0.19718819]
[1737180361941,0.30836066,103050.0,103040.0,0.19718819]
[1737180362158,0.28549074,103050.0,103040.0,0.19718819]
[1737180362310,0.28549074,103050.0,103040.0,0.09794738]
[1737180363503,0.15531306,103050.0,103040.0,0.19718819]
[1737180364159,0.17818298,103050.0,103040.0,0.19718819]
[1737180364382,0.03091306,103050.0,103040.0,0.19815858]
[1737180364606,0.03091306,103050.0,103040.0,0.20782417]
[1737180364607,0.00791306,103050.0,103040.0,0.20782417]
[1737180365975,0.00795496,103050.0,103040.0,0.20782417]
[1737180366518,0.00795496,103050.0,103040.0,0.23802371]
[1737180366719,0.00795496,103050.0,103040.0,0.23705332]
[1737180367534,0.00795496,103050.0,103040.0,0.37738773]
[1737180368678,0.00838286,103050.0,103040.0,0.50756541]
[1737180368824,5e-07,103050.0,103040.0,0.60756541]
[1737180369027,8e-07,103050.0,103040.0,0.68469549]
[1737180369244,6.4e-07,103050.0,103040.0,0.68469549]
[1737180369422,0.01654063,103060.0,103050.0,0.24704]
[1737180369629,0.01654063,103060.0,103050.0,0.39310594]
[1737180373222,0.01654063,103060.0,103050.0,0.62328362]
[1737180373581,0.01654063,103060.0,103050.0,0.64264175]
[1737180374036,0.01654063,103060.0,103050.0,0.7295004]
[1737180374186,0.01654063,103060.0,103050.0,0.8047004]
[1737180374393,0.01654063,103060.0,103050.0,0.67452272]
[1737180374593,0.01654063,103060.0,103050.0,0.8047004]
[1737180375019,0.01654063,103060.0,103050.0,0.67452272]
[1737180375217,0.01654063,103060.0,103050.0,0.57452272]
[1737180375442,0.01654063,103060.0,103050.0,0.60909687]
[1737180376224,0.01654063,103060.0,103050.0,0.52223822]
[1737180376949,0.24038211,103090.0,103080.0,0.097012]
[1737180377355,0.11020443,103090.0,103080.0,0.097012]
[1737180378258,0.24038211,103090.0,103080.0,0.097012]
[1737180379426,0.00089986,103100.0,103090.0,0.247002]
[1737180379629,0.00105183,103100.0,103090.0,0.49304608]
[1737180380159,0.00105183,103100.0,103090.0,0.3628684]
[1737180382127,0.00105183,103100.0,103090.0,0.37257538]
[1737180383325,0.00105183,103100.0,103090.0,0.39225769]
[1737180384308,0.00105183,103100.0,103090.0,0.52243537]
[1737180385544,0.00105183,103100.0,103090.0,0.38529769]
[1737180385780,0.08425183,103100.0,103090.0,0.36561538]
[1737180387154,0.08425183,103100.0,103090.0,0.49579306]
[1737180387155,0.00105183,103100.0,103090.0,0.49579306]
[1737180390602,0.00105183,103100.0,103090.0,0.69579306]
[1737180391191,8.3e-07,103100.0,103090.0,0.69579306]
[1737180391556,0.0836274,103120.0,103110.0,0.096983]
[1737180391886,0.0004274,103120.0,103110.0,0.48703666]
[1737180392035,0.0004274,103120.0,103110.0,0.48606708]
[1737180392645,0.0004274,103120.0,103110.0,0.49302708]
[1737180394252,0.0004274,103120.0,103110.0,0.72320476]
[1737180394469,4e-07,103120.0,103110.0,0.72320476]
[1737180394827,4e-07,103120.0,103110.0,0.82320476]
[1737180395029,4e-07,103120.0,103110.0,0.85321455]
[1737180395628,4e-07,103120.0,103110.0,0.86290339]
[1737180395842,0.0832,103140.0,103120.0,0.15]
[1737180396017,0.00015194,103140.0,103130.0,0.32735191]
[1737180396228,0.00015194,103140.0,103130.0,0.48604808]
[1737180396612,0.00015194,103140.0,103130.0,0.3558704]
[1737180398473,0.00015194,103140.0,103130.0,0.37525849]
[1737180399944,0.00015194,103140.0,103130.0,0.38496488]
[1737180400706,0.00015194,103140.0,103130.0,0.51514256]
[1737180401359,0.00015194,103140.0,103130.0,0.38496488]
[1737180403421,0.00015194,103140.0,103130.0,0.36557679]
[1737180403789,0.12956347,103140.0,103130.0,0.21557679]
[1737180403994,0.25974115,103140.0,103130.0,0.096964]
[1737180404569,0.12956347,103140.0,103130.0,0.34717442]
[1737180404734,0.12999107,103140.0,103130.0,0.34620481]
[1737180405786,0.08159107,103140.0,103130.0,0.34620481]
[1737180406165,0.08159107,103140.0,103130.0,0.47638249]
[1737180406362,0.08159107,103140.0,103130.0,0.34620481]
[1737180406716,0.00049107,103140.0,103130.0,0.34620481]
[1737180410944,0.00049107,103140.0,103130.0,0.47638249]
[1737180411680,0.00049107,103140.0,103130.0,0.50645937]
[1737180415560,0.00049107,103140.0,103130.0,0.51341937]
[1737180416270,0.00049107,103140.0,103130.0,0.53304516]
[1737180416778,0.00049107,103140.0,103130.0,0.63304516]
[1737180417342,0.00049107,103140.0,103130.0,0.40286748]
[1737180418133,0.00049107,103140.0,103130.0,0.53394291]
[1737180419536,0.00049107,103140.0,103130.0,0.40376523]
[1737180420347,0.00049107,103140.0,103130.0,0.37368835]
[1737180420572,0.08159107,103140.0,103130.0,0.37723643]
[1737180420748,0.08159107,103140.0,103130.0,0.34710256]
[1737180420963,0.26016875,103140.0,103130.0,0.19710256]
[1737180421162,0.26016875,103140.0,103130.0,0.09786175]
[1737180421719,0.096974,103120.0,103100.0,0.00966559]
[1737180421883,0.1295,103120.0,103110.0,0.096982]
[1737180422122,0.0811,103110.0,103100.0,0.39984075]
[1737180422642,0.25967768,103110.0,103100.0,0.39020581]
[1737180422803,0.25819768,103110.0,103100.0,0.39020581]
[1737180423005,0.27556668,103110.0,103090.0,0.30140207]
[1737180423205,0.13017768,103100.0,103090.0,0.29189296]
[1737180423406,0.27557068,103100.0,103090.0,0.00089796]
[1737180423802,0.17857768,103100.0,103090.0,0.24789996]
[1737180424235,0.17857768,103100.0,103090.0,0.09789996]
[1737180424396,0.17857768,103100.0,103090.0,0.24798843]
[1737180425178,0.17857768,103100.0,103090.0,0.09798843]
[1737180425732,0.0484,103100.0,103090.0,0.09798843]
[1737180425980,0.1264,103100.0,103090.0,0.09798843]
[1737180426200,0.25657768,103100.0,103090.0,0.09798843]
[1737180427459,0.1264,103100.0,103090.0,0.09798843]
[1737180427862,0.25657768,103100.0,103090.0,0.09798843]
[1737180428061,0.1264,103100.0,103090.0,0.09798843]
[1737180429125,0.1264,103100.0,103090.0,0.19722924]
[1737180430409,0.078,103100.0,103090.0,0.34722924]
[1737180437380,0.078,103100.0,103090.0,0.3665687]
[1737180438740,0.078,103100.0,103090.0,0.3895687]
[1737180440961,0.078,103100.0,103090.0,0.39943275]
[1737180441176,0.25627768,103100.0,103090.0,0.37643275]
[1737180441376,0.25627768,103100.0,103090.0,0.39943275]
[1737180441786,0.1261,103100.0,103090.0,0.39943275]
[1737180442855,0.078,103100.0,103090.0,0.39943275]
[1737180446490,0.0829276,103110.0,103100.0,0.269993]
[1737180446666,0.0829276,103110.0,103100.0,0.36923381]
[1737180446911,0.0004276,103110.0,103100.0,0.36923381]
[1737180447885,0.13060528,103110.0,103100.0,0.36923381]
[1737180448019,0.13060528,103110.0,103100.0,0.21923381]
[1737180448020,0.21310528,103110.0,103100.0,0.21923381]
[1737180449442,0.0829276,103110.0,103100.0,0.21923381]
[1737180449987,0.0829276,103110.0,103100.0,0.36923381]
[1737180457003,0.0829276,103110.0,103100.0,0.269993]
[1737180457223,0.21310528,103110.0,103100.0,0.096993]
[1737180457427,0.31008828,103110.0,103100.0,0.096993]
[1737180457807,0.41008828,103110.0,103100.0,0.096993]
[1737180457980,0.0756,103100.0,103090.0,0.31130989]
[1737180458180,0.1216,103100.0,103090.0,0.31130989]
[1737180458583,0.25177768,103100.0,103090.0,0.31130989]
[1737180458795,0.1216,103100.0,103090.0,0.31130989]
[1737180458983,0.34877068,103100.0,103090.0,0.29197043]
[1737180459185,0.34877068,103100.0,103090.0,0.09798143]
[1737180459521,0.25177768,103100.0,103090.0,0.09798143]
[1737180459855,0.1216,103100.0,103090.0,0.12098143]
[1737180460383,0.0756,103100.0,103090.0,0.22022224]
[1737180463738,0.20577768,103100.0,103090.0,0.12098143]
[1737180463914,0.0756,103100.0,103090.0,0.14032089]
[1737180464116,0.25177768,103100.0,103090.0,0.11732789]
[1737180467611,0.1216,103100.0,103090.0,0.11732789]
[1737180467806,0.1216,103100.0,103090.0,0.14032789]
[1737180468073,0.1216,103100.0,103090.0,0.2395687]
[1737180468208,0.0756,103100.0,103090.0,0.2395687]
[1737180470438,0.0756,103100.0,103090.0,0.3895687]
[1737180474298,0.0767276,103110.0,103100.0,0.119993]
[1737180474480,0.0767276,103110.0,103100.0,0.21923381]
[1737180478099,0.0767276,103110.0,103100.0,0.22877372]
[1737180478827,0.20690528,103110.0,103100.0,0.12953291]
[1737180480633,0.0767276,103110.0,103100.0,0.12953291]
[1737180481252,0.20690528,103110.0,103100.0,0.12953291]
[1737180483324,0.20690528,103110.0,103100.0,0.096993]
[1737180483463,0.220393,103100.0,103090.0,0.31131089]
[1737180483672,0.35057068,103100.0,103090.0,0.31131089]
[1737180483912,0.25357768,103100.0,103090.0,0.31131089]
[1737180484316,0.1234,103100.0,103090.0,0.33431089]
[1737180484516,0.0763,103100.0,103090.0,0.5835517]
[1737180487049,0.0780276,103110.0,103100.0,0.119993]
[1737180488859,0.0004276,103110.0,103100.0,0.50038136]
[1737180489062,0.0004276,103110.0,103100.0,0.52965016]
[1737180489679,6e-07,103110.0,103100.0,0.61065016]
[1737180490634,6e-07,103110.0,103100.0,0.82763246]
[1737180491663,6e-07,103110.0,103100.0,1.0012183]
[1737180492750,6e-07,103110.0,103100.0,1.02018834]
[1737180493176,6e-07,103110.0,103100.0,1.02974653]
[1737180493540,6e-07,103110.0,103100.0,0.81856885]
[1737180493789,6e-07,103110.0,103100.0,1.04289437]
[1737180494501,6e-07,103110.0,103100.0,0.95608975]
[1737180496703,6e-07,103110.0,103100.0,0.78250391]
[1737180497295,6e-07,103110.0,103100.0,0.65232623]
[1737180497946,6e-07,103110.0,103100.0,0.82591207]
[1737180498354,6e-07,103110.0,103100.0,0.95608975]
[1737180499219,6e-07,103110.0,103100.0,0.49194692]
[1737180499402,6e-07,103110.0,103100.0,0.49886692]
[1737180499607,6e-07,103110.0,103100.0,0.65294256]
[1737180499829,0.0776,103130.0,103120.0,0.246974]
[1737180500007,0.0776,103130.0,103120.0,0.38855427]
[1737180501591,0.0776,103130.0,103120.0,0.36555427]
[1737180504493,0.0776,103130.0,103120.0,0.37512488]
[1737180511603,0.0780279,103130.0,103120.0,0.37512488]
[1737180516820,0.0780279,103130.0,103120.0,0.27588407]
[1737180517465,0.0780279,103130.0,103120.0,0.37512488]
[1737180522381,0.0780279,103130.0,103120.0,0.40535196]
[1737180523034,0.0004279,103130.0,103120.0,0.40535196]
[1737180528930,0.0780279,103130.0,103120.0,0.40535196]
[1737180529131,0.1274279,103130.0,103120.0,0.40535196]
[1737180530097,0.1274279,103130.0,103120.0,0.3860125]
[1737180531739,0.0780279,103130.0,103120.0,0.3860125]
[1737180532150,0.0004279,103130.0,103120.0,0.3860125]
[1737180534024,0.0004279,103130.0,103120.0,0.47295871]
[1737180534942,0.0004279,103130.0,103120.0,0.77696386]
[1737180537157,0.0004279,103130.0,103120.0,0.60337802]
[1737180538594,0.21190558,103130.0,103120.0,0.60337802]
[1737180538798,0.21190558,103130.0,103120.0,0.50413721]
[1737180539213,0.21190558,103130.0,103120.0,0.47391013]
[1737180539214,0.0817279,103130.0,103120.0,0.47391013]
[1737180539360,0.0817279,103130.0,103120.0,0.57315094]
[1737180539622,0.0817279,103130.0,103120.0,0.35578542]
[1737180539795,0.0817279,103130.0,103120.0,0.38604638]
[1737180542928,0.21190558,103130.0,103120.0,0.10654461]
[1737180543290,0.0817279,103130.0,103120.0,0.10654461]
[1737180544157,0.1677881,103130.0,103120.0,0.10654461]
[1737180544786,0.1677881,103130.0,103120.0,0.35675516]
[1737180544904,0.0864881,103130.0,103120.0,0.51621087]
[1737180545103,0.0004279,103130.0,103120.0,0.38603319]
[1737180545700,0.0004279,103130.0,103120.0,0.53921087]
[1737180546111,0.0004279,103130.0,103120.0,1.05062771]
[1737180546325,0.0004279,103130.0,103120.0,0.92045003]
[1737180547376,0.0004279,103130.0,103120.0,1.05062771]
[1737180547628,9e-07,103130.0,103120.0,1.05062771]
[1737180548030,9e-07,103130.0,103120.0,1.0012084]
[1737180548234,9e-07,103130.0,103120.0,1.02104205]
[1737180549148,9e-07,103130.0,103120.0,0.90075824]
[1737180551489,9e-07,103130.0,103120.0,1.11831967]
[1737180552191,9e-07,103130.0,103120.0,0.90075824]
[1737180554009,0.0003885,103140.0,103130.0,0.246964]
[1737180554185,0.0003885,103140.0,103130.0,0.52596972]
[1737180555239,0.00043911,103140.0,103130.0,0.52596972]
[1737180555653,0.00043911,103140.0,103130.0,1.13473663]
[1737180557297,0.00043911,103140.0,103130.0,0.9172944]
[1737180558082,0.00043911,103140.0,103130.0,0.74337232]
[1737180559318,0.00043911,103140.0,103130.0,0.9172944]
[1737180561782,0.00043911,103140.0,103130.0,0.74337232]
[1737180563622,0.25951679,103140.0,103130.0,0.61319464]
[1737180563849,0.25951679,103140.0,103130.0,0.43294687]
[1737180564035,0.25951679,103140.0,103130.0,0.3143666]
[1737180564449,0.35647179,103140.0,103130.0,0.2174026]
[1737180564595,0.60964947,103140.0,103130.0,0.3143666]
[1737180564794,0.60889028,103140.0,103130.0,0.2174026]
[1737180565033,0.70889028,103140.0,103130.0,0.1393026]
[1737180565236,0.1289,103120.0,103110.0,0.60505427]
[1737180565591,0.1289,103120.0,103110.0,0.75505427]
[1737180566416,0.25907768,103120.0,103110.0,0.44182959]
[1737180567167,0.1519,103120.0,103110.0,0.44182959]
[1737180568014,0.1289,103120.0,103110.0,0.5410704]
[1737180568236,0.1289,103120.0,103110.0,0.56040986]
[1737180568414,0.21539931,103140.0,103120.0,0.15]
[1737180568620,0.21539931,103140.0,103130.0,0.19620481]
[1737180568849,0.34557699,103140.0,103130.0,0.21554427]
[1737180569060,0.21539931,103140.0,103130.0,0.21554427]
[1737180569471,0.12933911,103140.0,103130.0,0.21554427]
[1737180570227,0.12933911,103140.0,103130.0,0.20604427]
[1737180573006,0.00043911,103140.0,103130.0,0.20701387]
[1737180573439,0.00043911,103140.0,103130.0,0.20604427]
[1737180574214,0.13061679,103140.0,103130.0,0.20604427]
[1737180574621,0.00043911,103140.0,103130.0,0.20604427]
[1737180574989,0.00043911,103140.0,103130.0,0.36577276]
[1737180581903,0.00043911,103140.0,103130.0,0.36667114]